fUST/lending_fUST_20250302
["ID","MTS","AMOUNT","RATE_DAILY","PERIOD"]
[354964029,1740847844446,-637.54,0.00027397,2]
[354964030,1740847844455,-500.0,0.00027397,2]
[354964031,1740847844466,-531.61,0.00027397,2]
[354964032,1740847844476,-1025.97,0.00027397,2]
[354964033,1740847844486,-500.0,0.00027397,2]
[354964034,1740847844496,-671.93,0.00027397,2]
[354964035,1740847844506,-528.11,0.00027397,2]
[354964037,1740847844516,-500.0,0.00027397,2]
[354964039,1740847844526,-500.0,0.00027397,2]
[354964040,1740847844536,-500.0,0.00027397,2]
[354964041,1740847844546,-500.0,0.00027397,2]
[354964042,1740847844556,-500.0,0.00027397,2]
[354964043,1740847844566,-2465.63,0.00027397,2]
[354964044,1740847844576,-757.8,0.00027397,2]
[354964045,1740847844586,-896.24,0.00027397,2]
[354964046,1740847844596,-500.0,0.00027397,2]
[354964047,1740847844605,-500.0,0.00027397,2]
[354964048,1740847844615,-500.0,0.00027397,2]
[354964049,1740847844625,-15628.14,0.00027397,2]
[354964050,1740847844638,-500.0,0.00027397,2]
[354964051,1740847844648,-500.0,0.00027397,2]
[354964052,1740847844657,-500.0,0.00027397,2]
[354964053,1740847844668,-2067.38,0.00027397,2]
[354964054,1740847844677,-1546.15,0.00027397,2]
[354964055,1740847844688,-500.0,0.00027397,2]
[354964056,1740847844697,-2679.43,0.00027397,2]
[354964057,1740847844708,-500.0,0.00027397,2]
[354964058,1740847844718,-500.0,0.00027397,2]
[354964059,1740847844727,-10663.36,0.00027397,2]
[354964060,1740847844737,-500.0,0.00027397,2]
[354964061,1740847844747,-500.0,0.00027397,2]
[354964062,1740847844757,-500.0,0.00027397,2]
[354964063,1740847844767,-500.0,0.00027397,2]
[354964064,1740847844777,-599.21,0.00027397,2]
[354964065,1740847844786,-500.0,0.00027397,2]
[354964066,1740847844796,-500.0,0.00027397,2]
[354964067,1740847844806,-500.0,0.00027397,2]
[354964068,1740847844816,-572.68520995,0.00027397,2]
[354964069,1740847844826,-1847.19,0.00027397,2]
[354964070,1740847844836,-318.47186601,0.00027397,2]
[354964071,1740847844846,-500.0,0.00027397,2]
[354964072,1740847844856,-1566.07,0.00027397,2]
[354964073,1740847844865,-500.0,0.00027397,2]
[354964074,1740847844875,-500.0,0.00027397,2]
[354964075,1740847844885,-500.0,0.00027397,2]
[354964076,1740847844895,-500.0,0.00027397,2]
[354964077,1740847844904,-500.0,0.00027397,2]
[354964078,1740847844914,-9045.95,0.00027397,2]
[354964079,1740847844923,-1252.05,0.00027397,2]
[354964080,1740847844933,-500.0,0.00027397,2]
[354964081,1740847844943,-500.0,0.00027397,2]
[354964082,1740847844953,-500.0,0.00027397,2]
[354964083,1740847844962,-500.0,0.00027397,2]
[354964084,1740847844972,-500.0,0.00027397,2]
[354964085,1740847844982,-500.0,0.00027397,2]
[354964086,1740847844992,-500.0,0.00027397,2]
[354964087,1740847845001,-500.0,0.00027397,2]
[354964088,1740847845011,-590.11,0.00027397,2]
[354964089,1740847845020,-761.61,0.00027397,2]
[354964090,1740847845030,-1712.1,0.00027397,2]
[354964091,1740847845039,-586.58,0.00027397,2]
[354964092,1740847845049,-500.0,0.00027397,2]
[354964093,1740847845059,-2901.24,0.00027397,2]
[354964094,1740847845069,-1068.82,0.00027397,2]
[354964095,1740847845078,-500.0,0.00027397,2]
[354964096,1740847845088,-5606.45,0.00027397,2]
[354964097,1740847845098,-1215.68,0.00027397,2]
[354964098,1740847845107,-2987.21,0.00027397,2]
[354964099,1740847845118,-945.03,0.00027397,2]
[354964100,1740847845127,-500.0,0.00027397,2]
[354964101,1740847845137,-500.0,0.00027397,2]
[354964102,1740847845146,-1620.05,0.00027397,2]
[354964103,1740847845155,-787.37,0.00027397,2]
[354964104,1740847845165,-687.25,0.00027397,2]
[354964105,1740847845175,-500.0,0.00027397,2]
[354964106,1740847845184,-500.0,0.00027397,2]
[354964107,1740847845194,-1198.93,0.00027397,5]
[354964108,1740847845203,-500.0,0.00027397,2]
[354964109,1740847845214,-854.57,0.00027397,2]
[354964110,1740847845223,-513.72178489,0.00027397,2]
[354964111,1740847845233,-2408.28,0.00027397,2]
[354964112,1740847845244,-500.0,0.00027397,2]
[354964113,1740847845254,-742.65,0.00027397,2]
[354964114,1740847845264,-1536.11,0.00027397,2]
[354964115,1740847845273,-500.0,0.00027397,2]
[354964116,1740847845283,-500.0,0.00027397,2]
[354964117,1740847845293,-500.0,0.00027397,2]
[354964118,1740847845303,-500.0,0.00027397,2]
[354964119,1740847845312,-500.0,0.00027397,2]
[354964120,1740847845321,-500.0,0.00027397,2]
[354964121,1740847845331,-36279.95,0.00027397,2]
[354964122,1740847845341,-1771.68,0.00027397,2]
[354964123,1740847845351,-1139.62,0.00027397,2]
[354964124,1740847845361,-500.0,0.00027397,2]
[354964125,1740847845371,-1608.35,0.00027397,2]
[354964126,1740847845381,-500.0,0.00027397,2]
[354964127,1740847845390,-500.0,0.00027397,2]
[354964128,1740847845400,-817.55,0.00027397,2]
[354964129,1740847845411,-500.0,0.00027397,2]
[354964130,1740847845420,-500.0,0.00027397,2]
[354964131,1740847845430,-500.0,0.00027397,2]
[354964132,1740847845440,-500.0,0.00027397,2]
[354964133,1740847845450,-2441.87,0.00027397,2]
[354964134,1740847845459,-1083.41,0.00027397,2]
[354964135,1740847845469,-602.69,0.00027397,2]
[354964136,1740847845478,-500.0,0.00027397,2]
[354964137,1740847845488,-500.0,0.00027397,2]
[354964138,1740847845498,-3560.07,0.00027397,2]
[354964139,1740847845507,-500.0,0.00027397,2]
[354964140,1740847845517,-505.32427382,0.00027397,2]
[354964141,1740847845527,-887.45,0.00027397,2]
[354964142,1740847845536,-500.0,0.00027397,2]
[354964143,1740847845546,-6735.31,0.00027397,2]
[354964144,1740847845555,-508.62,0.00027397,2]
[354964145,1740847845565,-1146.07,0.00027397,2]
[354964146,1740847845575,-1999.52,0.00027397,2]
[354964147,1740847845585,-500.0,0.00027397,2]
[354964148,1740847845595,-649.89,0.00027397,2]
[354964149,1740847845606,-892.73,0.00027397,2]
[354964150,1740847845616,-11481.04,0.00027397,2]
[354964151,1740847845625,-8905.13,0.00027397,2]
[354964152,1740847845637,-590.75,0.00027397,2]
[354964153,1740847845646,-500.0,0.00027397,2]
[354964154,1740847845656,-862.57,0.00027397,2]
[354964155,1740847845666,-1205.38,0.00027397,2]
[354964156,1740847845675,-848.85,0.00027397,2]
[354964157,1740847845685,-500.0,0.00027397,2]
[354964158,1740847845695,-1510.28,0.00027397,2]
[354964159,1740847845704,-500.0,0.00027397,2]
[354964160,1740847845713,-1076.31,0.00027397,2]
[354964161,1740847845723,-1273.01,0.00027397,2]
[354964162,1740847845733,-1233.54,0.00027397,2]
[354964163,1740847845742,-500.0,0.00027397,2]
[354964164,1740847845752,-500.0,0.00027397,2]
[354964165,1740847845762,-550.05,0.00027397,2]
[354964166,1740847845771,-1921.14,0.00027397,2]
[354964167,1740847845781,-3226.09,0.00027397,2]
[354964168,1740847845790,-500.0,0.00027397,2]
[354964169,1740847845800,-500.0,0.00027397,2]
[354964170,1740847845810,-500.0,0.00027397,2]
[354964171,1740847845819,-507.44,0.00027397,2]
[354964172,1740847845828,-500.0,0.00027397,2]
[354964173,1740847845837,-500.0,0.00027397,2]
[354964174,1740847845847,-845.09,0.00027397,2]
[354964175,1740847845856,-6316.88,0.00027397,2]
[354964176,1740847845867,-500.0,0.00027397,2]
[354964177,1740847845876,-1666.54,0.00027397,2]
[354964178,1740847845886,-500.0,0.00027397,2]
[354964179,1740847845896,-4030.91,0.00027397,2]
[354964180,1740847845906,-831.76,0.00027397,2]
[354964181,1740847845916,-500.0,0.00027397,2]
[354964182,1740847845925,-500.0,0.00027397,2]
[354964183,1740847845935,-500.0,0.00027397,2]
[354964184,1740847845944,-500.0,0.00027397,2]
[354964185,1740847845953,-500.0,0.00027397,2]
[354964186,1740847845963,-500.0,0.00027397,2]
[354964187,1740847845973,-500.0,0.00027397,2]
[354964188,1740847845983,-500.0,0.00027397,2]
[354964189,1740847845993,-5523.74,0.00027397,2]
[354964190,1740847846003,-500.0,0.00027397,2]
[354964191,1740847846013,-500.0,0.00027397,2]
[354964192,1740847846022,-500.0,0.00027397,2]
[354964193,1740847846032,-500.0,0.00027397,2]
[354964194,1740847846042,-500.0,0.00027397,2]
[354964195,1740847846052,-1601.15,0.00027397,2]
[354964196,1740847846062,-13963.98,0.00027397,2]
[354964197,1740847846071,-3504.17,0.00027397,2]
[354964198,1740847846082,-458.37821613,0.00027397,2]
[354964199,1740847846091,-178.30803534,0.00027472,2]
[354964201,1740847846174,-9700.98564168,0.00027571,2]
[354964202,1740847846185,-178.30803534,0.00027571,2]
[354964203,1740847846194,-164.07420452,0.00027671,2]
[354964204,1740847846203,-500.0,0.00027671,2]
[354964205,1740847846213,-500.0,0.00027671,2]
[354964206,1740847846222,-500.0,0.00027671,2]
[354964207,1740847846232,-1318.01,0.00027671,2]
[354964208,1740847846241,-386.79695689,0.00027671,2]
[354964209,1740847846251,-500.0,0.00027671,2]
[354964210,1740847846261,-500.0,0.00027671,2]
[354964211,1740847846271,-500.0,0.00027671,2]
[354964212,1740847846280,-500.0,0.00027671,2]
[354964213,1740847846289,-500.0,0.00027671,2]
[354964214,1740847846299,-500.0,0.00027671,2]
[354964215,1740847846308,-500.0,0.00027671,2]
[354964216,1740847846318,-512.51198397,0.00027671,2]
[354964217,1740847846328,-517.47,0.00027671,2]
[354964218,1740847846337,-500.0,0.00027671,2]
[354964219,1740847846347,-500.0,0.00027671,2]
[354964220,1740847846357,-500.0,0.00027671,2]
[354964221,1740847846367,-500.0,0.00027671,2]
[354964222,1740847846376,-500.0,0.00027671,2]
[354964223,1740847846385,-500.0,0.00027671,2]
[354964224,1740847846395,-500.0,0.00027671,2]
[354964225,1740847846404,-500.0,0.00027671,2]
[354964226,1740847846414,-500.0,0.00027671,2]
[354964227,1740847846424,-500.0,0.00027671,2]
[354964228,1740847846433,-500.0,0.00027671,2]
[354964229,1740847846443,-760.94,0.00027671,2]
[354964230,1740847846452,-500.0,0.00027671,2]
[354964231,1740847846463,-1213.85,0.00027671,2]
[354964232,1740847846472,-500.0,0.00027671,2]
[354964233,1740847846481,-500.0,0.00027671,2]
[354964234,1740847846491,-989.51,0.00027671,2]
[354964235,1740847846500,-500.0,0.00027671,2]
[354964236,1740847846510,-500.0,0.00027671,2]
[354964237,1740847846519,-577.36,0.00027671,2]
[354964238,1740847846529,-500.0,0.00027671,2]
[354964239,1740847846538,-500.0,0.00027671,2]
[354964240,1740847846547,-500.0,0.00027671,2]
[354964241,1740847846557,-500.0,0.00027671,2]
[354964242,1740847846567,-500.0,0.00027671,2]
[354964243,1740847846576,-642.62,0.00027671,2]
[354964244,1740847846586,-500.0,0.00027671,2]
[354964246,1740847846595,-500.0,0.00027671,2]
[354964247,1740847846608,-500.0,0.00027671,2]
[354964248,1740847846617,-500.0,0.00027671,2]
[354964249,1740847846627,-589.04271304,0.00027671,2]
[354964250,1740847846641,-500.0,0.00027671,2]
[354964251,1740847846650,-500.0,0.00027671,2]
[354964252,1740847846660,-500.0,0.00027671,2]
[354964253,1740847846669,-500.0,0.00027671,2]
[354964254,1740847846681,-500.0,0.00027671,2]
[354964255,1740847846691,-500.0,0.00027671,2]
[354964256,1740847846700,-500.0,0.00027671,2]
[354964257,1740847846710,-500.0,0.00027671,2]
[354964258,1740847846720,-500.0,0.00027671,2]
[354964259,1740847846730,-500.0,0.00027671,2]
[354964260,1740847846740,-500.0,0.00027671,2]
[354964261,1740847846749,-867.85,0.00027671,2]
[354964262,1740847846759,-500.0,0.00027671,2]
[354964263,1740847846768,-500.0,0.00027671,2]
[354964264,1740847846778,-500.0,0.00027671,2]
[354964265,1740847846788,-500.0,0.00027671,2]
[354964266,1740847846798,-500.0,0.00027671,2]
[354964267,1740847846807,-500.0,0.00027671,2]
[354964268,1740847846817,-500.0,0.00027671,2]
[354964269,1740847846826,-537.93,0.00027671,2]
[354964270,1740847846836,-1259.86,0.00027671,2]
[354964271,1740847846846,-500.0,0.00027671,2]
[354964272,1740847846857,-500.0,0.00027671,2]
[354964273,1740847846866,-500.0,0.00027671,2]
[354964274,1740847846876,-297.94138301,0.00027671,2]
[354964275,1740847846885,-500.0,0.00027671,2]
[354964276,1740847846895,-500.0,0.00027671,2]
[354964277,1740847846905,-500.0,0.00027671,2]
[354964278,1740847846915,-742.73,0.00027671,2]
[354964279,1740847846925,-500.0,0.00027671,2]
[354964280,1740847846934,-500.0,0.00027671,2]
[354964281,1740847846944,-500.0,0.00027671,2]
[354964282,1740847846954,-500.0,0.00027671,2]
[354964283,1740847846963,-216.40643473,0.00027671,2]
[354964284,1740847846973,-500.0,0.00027671,2]
[354964285,1740847846982,-763.82,0.00027671,2]
[354964286,1740847846992,-500.0,0.00027671,2]
[354964287,1740847847001,-1335.55,0.00027671,2]
[354964288,1740847847010,-1269.42,0.00027671,2]
[354964289,1740847847020,-500.0,0.00027671,2]
[354964290,1740847847029,-500.0,0.00027671,2]
[354964291,1740847847039,-500.0,0.00027671,2]
[354964292,1740847847048,-1082.49,0.00027671,2]
[354964293,1740847847057,-500.0,0.00027671,2]
[354964294,1740847847067,-708.69,0.00027671,2]
[354964295,1740847847076,-500.0,0.00027671,2]
[354964296,1740847847086,-500.0,0.00027671,2]
[354964297,1740847847095,-500.0,0.00027671,2]
[354964298,1740847847107,-500.0,0.00027671,2]
[354964299,1740847847117,-500.0,0.00027671,2]
[354964300,1740847847126,-500.0,0.00027671,2]
[354964301,1740847847136,-500.0,0.00027671,2]
[354964302,1740847847146,-500.0,0.00027671,2]
[354964303,1740847847156,-500.0,0.00027671,2]
[354964304,1740847847165,-500.0,0.00027671,2]
[354964305,1740847847175,-575.69,0.00027671,2]
[354964306,1740847847184,-500.0,0.00027671,2]
[354964307,1740847847195,-870.75,0.00027671,2]
[354964308,1740847847204,-500.0,0.00027671,2]
[354964309,1740847847214,-500.0,0.00027671,2]
[354964310,1740847847223,-860.42,0.00027671,2]
[354964311,1740847847233,-500.0,0.00027671,2]
[354964312,1740847847243,-596.52,0.00027671,2]
[354964313,1740847847252,-294.04671289,0.00027671,2]
[354964314,1740847847262,-500.0,0.00027671,2]
[354964315,1740847847271,-500.0,0.00027671,2]
[354964316,1740847847281,-500.0,0.00027671,2]
[354964317,1740847847290,-1251.88,0.00027671,2]
[354964318,1740847847300,-500.0,0.00027671,2]
[354964319,1740847847309,-500.0,0.00027671,2]
[354964320,1740847847319,-500.0,0.00027671,2]
[354964321,1740847847329,-1778.82,0.00027671,2]
[354964322,1740847847338,-500.0,0.00027671,2]
[354964323,1740847847348,-966.36,0.00027671,2]
[354964324,1740847847358,-500.0,0.00027671,2]
[354964325,1740847847368,-1617.79,0.00027671,2]
[354964326,1740847847377,-500.0,0.00027671,2]
[354964327,1740847847387,-500.0,0.00027671,2]
[354964328,1740847847396,-500.0,0.00027671,2]
[354964329,1740847847406,-500.0,0.00027671,2]
[354964330,1740847847415,-500.0,0.00027671,2]
[354964331,1740847847425,-1878.9,0.00027671,2]
[354964332,1740847847435,-1691.23,0.00027671,2]
[354964333,1740847847445,-837.68,0.00027671,2]
[354964334,1740847847455,-500.0,0.00027671,2]
[354964335,1740847847465,-500.0,0.00027671,2]
[354964336,1740847847474,-500.0,0.00027671,2]
[354964337,1740847847483,-500.0,0.00027671,2]
[354964338,1740847847493,-500.0,0.00027671,2]
[354964339,1740847847503,-500.0,0.00027671,2]
[354964340,1740847847512,-500.0,0.00027671,2]
[354964341,1740847847521,-2378.97,0.00027671,2]
[354964342,1740847847531,-535.23,0.00027671,2]
[354964343,1740847847540,-500.0,0.00027671,2]
[354964344,1740847847550,-500.0,0.00027671,2]
[354964345,1740847847559,-500.0,0.00027671,2]
[354964346,1740847847569,-500.0,0.00027671,2]
[354964347,1740847847578,-541.14,0.00027671,2]
[354964348,1740847847588,-744.17,0.00027671,2]
[354964349,1740847847598,-587.42,0.00027671,2]
[354964350,1740847847608,-500.0,0.00027671,2]
[354964351,1740847847618,-1263.0,0.00027671,2]
[354964352,1740847847628,-1142.35,0.00027671,2]
[354964353,1740847847640,-501.5,0.00027671,2]
[354964354,1740847847649,-1317.89,0.00027671,2]
[354964355,1740847847658,-546.29,0.00027671,2]
[354964356,1740847847668,-500.0,0.00027671,2]
[354964357,1740847847678,-500.0,0.00027671,2]
[354964358,1740847847687,-500.0,0.00027671,2]
[354964359,1740847847697,-647.84,0.00027671,2]
[354964360,1740847847706,-1162.17,0.00027671,2]
[354964361,1740847847717,-500.0,0.00027671,2]
[354964362,1740847847727,-605.93,0.00027671,2]
[354964363,1740847847736,-500.0,0.00027671,2]
[354964364,1740847847746,-725.48,0.00027671,2]
[354964365,1740847847755,-1015.03927294,0.00027671,2]
[354964366,1740847847765,-500.0,0.00027671,2]
[354964367,1740847847774,-500.0,0.00027671,2]
[354964368,1740847847784,-508.53943739,0.00027671,2]
[354964369,1740847847794,-500.0,0.00027671,2]
[354964370,1740847847803,-1741.13,0.00027671,2]
[354964371,1740847847812,-500.0,0.00027671,2]
[354964372,1740847847822,-1569.77,0.00027671,2]
[354964373,1740847847831,-500.0,0.00027671,2]
[354964374,1740847847841,-500.0,0.00027671,2]
[354964375,1740847847852,-500.0,0.00027671,2]
[354964376,1740847847862,-998.8,0.00027671,2]
[354964377,1740847847871,-500.0,0.00027671,2]
[354964378,1740847847881,-500.0,0.00027671,2]
[354964379,1740847847890,-500.0,0.00027671,2]
[354964380,1740847847900,-500.0,0.00027671,2]
[354964381,1740847847909,-500.0,0.00027671,2]
[354964382,1740847847919,-500.0,0.00027671,2]
[354964383,1740847847929,-500.0,0.00027671,2]
[354964384,1740847847938,-500.0,0.00027671,2]
[354964385,1740847847948,-731.76,0.00027671,2]
[354964386,1740847847958,-1381.4,0.00027671,2]
[354964387,1740847847967,-1386.37,0.00027671,2]
[354964388,1740847847977,-500.0,0.00027671,2]
[354964389,1740847847987,-500.0,0.00027671,2]
[354964390,1740847847996,-500.0,0.00027671,2]
[354964391,1740847848005,-1693.02,0.00027671,2]
[354964392,1740847848015,-500.0,0.00027671,2]
[354964393,1740847848024,-649.04,0.00027671,2]
[354964394,1740847848033,-653.93,0.00027671,2]
[354964395,1740847848042,-500.0,0.00027671,2]
[354964396,1740847848054,-500.0,0.00027671,2]
[354964397,1740847848063,-500.0,0.00027671,2]
[354964398,1740847848073,-453.94059428,0.00027671,2]
[354964399,1740847848082,-1267.16,0.00027671,2]
[354964400,1740847848092,-500.0,0.00027671,2]
[354964401,1740847848101,-500.0,0.00027671,2]
[354964402,1740847848111,-500.0,0.00027671,2]
[354964403,1740847848120,-500.0,0.00027671,2]
[354964404,1740847848129,-500.0,0.00027671,2]
[354964405,1740847848138,-500.0,0.00027671,2]
[354964406,1740847848148,-500.0,0.00027671,2]
[354964407,1740847848157,-500.0,0.00027671,2]
[354964408,1740847848167,-500.0,0.00027671,2]
[354964409,1740847848176,-612.86,0.00027671,2]
[354964410,1740847848185,-1106.39,0.00027671,2]
[354964411,1740847848195,-500.0,0.00027671,2]
[354964412,1740847848205,-500.0,0.00027671,2]
[354964413,1740847848215,-720.91,0.00027671,2]
[354964414,1740847848225,-509.00241629,0.00027671,2]
[354964415,1740847848234,-3273.57,0.00027671,2]
[354964416,1740847848243,-775.19,0.00027671,2]
[354964417,1740847848253,-2043.29,0.00027671,2]
[354964418,1740847848263,-500.0,0.00027671,2]
[354964419,1740847848272,-585.32,0.00027671,2]
[354964420,1740847848281,-500.0,0.00027671,2]
[354964421,1740847848290,-500.0,0.00027671,2]
[354964422,1740847848299,-500.0,0.00027671,2]
[354964423,1740847848309,-1569.0,0.00027671,2]
[354964424,1740847848318,-1444.24,0.00027671,2]
[354964425,1740847848328,-1867.64,0.00027671,2]
[354964426,1740847848338,-602.73,0.00027671,2]
[354964427,1740847848347,-500.0,0.00027671,2]
[354964428,1740847848359,-500.0,0.00027671,2]
[354964429,1740847848370,-500.0,0.00027671,2]
[354964430,1740847848380,-500.0,0.00027671,2]
[354964431,1740847848390,-500.0,0.00027671,2]
[354964432,1740847848400,-1939.28,0.00027671,2]
[354964433,1740847848410,-840.35,0.00027671,2]
[354964434,1740847848419,-500.0,0.00027671,2]
[354964435,1740847848430,-500.0,0.00027671,2]
[354964436,1740847848439,-634.48,0.00027671,2]
[354964437,1740847848449,-817.2,0.00027671,2]
[354964438,1740847848459,-500.0,0.00027671,2]
[354964439,1740847848468,-632.43,0.00027671,2]
[354964440,1740847848478,-1890.67,0.00027671,2]
[354964441,1740847848488,-500.0,0.00027671,2]
[354964442,1740847848498,-1453.44,0.00027671,2]
[354964443,1740847848507,-500.0,0.00027671,2]
[354964444,1740847848517,-634.77,0.00027671,2]
[354964445,1740847848527,-500.0,0.00027671,2]
[354964446,1740847848536,-1034.21,0.00027671,2]
[354964447,1740847848546,-500.0,0.00027671,2]
[354964448,1740847848555,-500.0,0.00027671,2]
[354964449,1740847848564,-558.05,0.00027671,2]
[354964450,1740847848574,-500.0,0.00027671,2]
[354964451,1740847848584,-500.0,0.00027671,2]
[354964452,1740847848594,-500.0,0.00027671,2]
[354964453,1740847848607,-1254.85,0.00027671,2]
[354964454,1740847848616,-500.0,0.00027671,2]
[354964455,1740847848626,-603.36,0.00027671,2]
[354964456,1740847848638,-179451.17,0.00027671,2]
[354964457,1740847848647,-500.0,0.00027671,2]
[354964458,1740847848656,-500.0,0.00027671,2]
[354964459,1740847848666,-2070.82,0.00027671,2]
[354964460,1740847848675,-500.0,0.00027671,2]
[354964461,1740847848684,-500.0,0.00027671,2]
[354964462,1740847848694,-1057.79,0.00027671,2]
[354964463,1740847848705,-500.0,0.00027671,2]
[354964464,1740847848721,-1676.5,0.00027671,2]
[354964465,1740847848731,-500.0,0.00027671,2]
[354964466,1740847848740,-500.0,0.00027671,2]
[354964467,1740847848750,-601.68,0.00027671,2]
[354964468,1740847848759,-500.0,0.00027671,2]
[354964469,1740847848769,-510.69,0.00027671,2]
[354964470,1740847848778,-582.56,0.00027671,2]
[354964471,1740847848788,-3552.32,0.00027671,2]
[354964472,1740847848797,-3157.45,0.00027671,2]
[354964473,1740847848806,-1338.33,0.00027671,2]
[354964474,1740847848816,-500.0,0.00027671,2]
[354964475,1740847848825,-500.0,0.00027671,2]
[354964476,1740847848835,-2064.43,0.00027671,2]
[354964477,1740847848844,-4763.03,0.00027671,2]
[354964478,1740847848854,-1063.32,0.00027671,2]
[354964479,1740847848864,-591.18,0.00027671,2]
[354964480,1740847848873,-1167.76,0.00027671,2]
[354964481,1740847848883,-559.58,0.00027671,2]
[354964482,1740847848893,-200.0,0.00027671,2]
[354964483,1740847848902,-678.09,0.00027671,2]
[354964484,1740847848911,-500.0,0.00027671,2]
[354964485,1740847848921,-500.0,0.00027671,2]
[354964486,1740847848930,-2208.22,0.00027671,2]
[354964487,1740847848940,-10240.7,0.00027671,2]
[354964488,1740847848950,-500.0,0.00027671,2]
[354964489,1740847848959,-500.0,0.00027671,2]
[354964490,1740847848969,-500.0,0.00027671,2]
[354964491,1740847848978,-500.0,0.00027671,2]
[354964492,1740847848988,-268.19323666,0.00027671,2]
[354964493,1740847848997,-500.0,0.00027671,2]
[354964494,1740847849006,-319.1493919,0.00027671,2]
[354964495,1740847849016,-500.0,0.00027671,2]
[354964496,1740847849025,-500.0,0.00027671,2]
[354964497,1740847849034,-500.0,0.00027671,2]
[354964498,1740847849043,-500.0,0.00027671,2]
[354964499,1740847849052,-500.0,0.00027671,2]
[354964500,1740847849062,-637.54,0.00027671,2]
[354964501,1740847849071,-500.0,0.00027671,2]
[354964502,1740847849081,-531.61,0.00027671,2]
[354964503,1740847849090,-1025.97,0.00027671,2]
[354964504,1740847849099,-500.0,0.00027671,2]
[354964505,1740847849109,-671.93,0.00027671,2]
[354964506,1740847849119,-528.11,0.00027671,2]
[354964507,1740847849129,-500.0,0.00027671,2]
[354964508,1740847849139,-500.0,0.00027671,2]
[354964509,1740847849152,-500.0,0.00027671,2]
[354964510,1740847849162,-2465.63,0.00027671,2]
[354964511,1740847849172,-757.8,0.00027671,2]
[354964512,1740847849182,-896.24,0.00027671,2]
[354964513,1740847849191,-500.0,0.00027671,2]
[354964514,1740847849201,-15628.14,0.00027671,2]
[354964515,1740847849211,-500.0,0.00027671,2]
[354964516,1740847849220,-2067.38,0.00027671,2]
[354964517,1740847849230,-1546.15,0.00027671,2]
[354964518,1740847849239,-500.0,0.00027671,2]
[354964519,1740847849249,-2679.43,0.00027671,2]
[354964520,1740847849259,-500.0,0.00027671,2]
[354964521,1740847849268,-500.0,0.00027671,2]
[354964522,1740847849278,-10663.36,0.00027671,2]
[354964523,1740847849287,-500.0,0.00027671,2]
[354964524,1740847849297,-599.21,0.00027671,2]
[354964525,1740847849306,-500.0,0.00027671,2]
[354964526,1740847849316,-500.0,0.00027671,2]
[354964527,1740847849326,-500.0,0.00027671,2]
[354964528,1740847849335,-1847.19,0.00027671,2]
[354964529,1740847849345,-500.0,0.00027671,2]
[354964530,1740847849356,-1566.07,0.00027671,2]
[354964531,1740847849366,-500.0,0.00027671,2]
[354964532,1740847849375,-500.0,0.00027671,2]